fUST/lending_fUST_20251212
["ID","MTS","AMOUNT","RATE_DAILY","PERIOD"]
[398317624,1765534240301,-153.32,9.4e-05,2]
[398317625,1765534240310,-153.32,9.6e-05,2]
[398317626,1765534240319,-1200.0,9.759e-05,2]
[398317627,1765534240328,-300.0,9.759e-05,2]
[398317628,1765534240337,-1200.0,9.759e-05,2]
[398317629,1765534240346,-300.0,9.76e-05,2]
[398317630,1765534240356,-300.0,9.76e-05,2]
[398317631,1765534240365,-300.0,9.76e-05,2]
[398317632,1765534240374,-300.0,9.762e-05,2]
[398317633,1765534240382,-29664.35,9.763e-05,2]
[398317634,1765534240392,-153.32,9.8e-05,2]
[398317635,1765534240401,-600.0,9.954e-05,2]
[398317636,1765534240410,-470.82644638,9.975e-05,2]
[398317649,1765534243039,-549.61355362,9.975e-05,2]
[398317651,1765534243049,-153.32,0.0001,2]
[398317652,1765534243058,-153.32,0.000102,2]
[398317653,1765534243067,-1131.30833423,0.00010221,2]
[398317654,1765534243076,-878.33390952,0.00010221,2]
[398317655,1765534243085,-153.32,0.000104,2]
[398317656,1765534243094,-153.32,0.000106,2]
[398317657,1765534243103,-2033.93,0.00010637,2]
[398317658,1765534243112,-1224.53,0.0001064,2]
[398317659,1765534243121,-308.53997046,0.00010709,2]
[398317660,1765534243132,-156.57217215,0.00010726,2]
[398317661,1765534243141,-1680.0,0.00010735,2]
[398317662,1765534243150,-420.0,0.00010735,2]
[398317663,1765534243160,-1680.0,0.00010735,2]
[398317664,1765534243169,-420.0,0.00010736,2]
[398317665,1765534243178,-172.0,0.00010736,2]
[398317666,1765534243187,-420.0,0.00010736,2]
[398317667,1765534243196,-1000.0,0.00010736,2]
[398317668,1765534243206,-582.5747,0.00010736,2]
[398317669,1765534243216,-316.5149,0.00010736,2]
[398317670,1765534243226,-177.0,0.000108,2]
[398317671,1765534243235,-153.32,0.000108,2]
[398317672,1765534243244,-574.12855637,0.00010885,2]
[398317673,1765534243254,-720.0,0.0001095,2]
[398317674,1765534243263,-316.5149,0.00010951,2]
[398317675,1765534243272,-198.37498186,0.00010959,7]
[398317676,1765534243282,-625.81864659,0.00010999,2]
[398317677,1765534243291,-500.0,0.00010999,2]
[398317678,1765534243302,-168.64587816,0.00010999,2]
[398317679,1765534243312,-500.0,0.00010999,2]
[398317680,1765534243322,-500.0,0.00010999,2]
[398317681,1765534243332,-500.0,0.00010999,2]
[398317682,1765534243343,-500.0,0.00010999,2]
[398317683,1765534243352,-550.0,0.00010999,2]
[398317684,1765534243362,-500.0,0.00010999,2]
[398317685,1765534243372,-500.0,0.00010999,2]
[398317686,1765534243381,-2521.0,0.00011,2]
[398317687,1765534243390,-153.32,0.00011,2]
[398317688,1765534243400,-1131.30833423,0.00011008,2]
[398317689,1765534243410,-878.33390952,0.00011008,2]
[398317690,1765534243421,-153.32,0.000112,2]
[398317691,1765534243430,-316.5149,0.00011273,2]
[398317692,1765534243439,-329.9601501,0.00011299,2]
[398317693,1765534243449,-308.72921538,0.00011299,2]
[398317694,1765534243458,-10000.0,0.000113,2]
[398317695,1765534243468,-1428.62,0.00011305,2]
[398317696,1765534243477,-5098.2107916,0.00011352,2]
[398317697,1765534243486,-153.32,0.000114,2]
[398317698,1765534243495,-595.37131296,0.00011433,2]
[398317699,1765534243504,-1194.0814046,0.00011507,2]
[398317700,1765534243514,-197.31166905,0.00011551,2]
[398317701,1765534243523,-197.74795487,0.00011551,2]
[398317702,1765534243532,-153.32,0.000116,2]
[398317703,1765534243541,-250.0,0.00011628,2]
[398317704,1765534243550,-308.53997046,0.00011665,2]
[398317705,1765534243561,-1131.30833423,0.00011795,2]
[398317706,1765534243570,-878.33390952,0.00011795,2]
[398317707,1765534243579,-153.32,0.000118,2]
[398317708,1765534243589,-727.0,0.00011808,2]
[398317709,1765534243598,-167.0,0.00011808,2]
[398317710,1765534243607,-1681.0,0.00011808,2]
[398317711,1765534243617,-169.0,0.0001181,2]
[398317712,1765534243625,-587.0,0.0001181,2]
[398317713,1765534243635,-216.85764328,0.000119,2]
[398317714,1765534243644,-1632.71,0.0001197,2]
[398317715,1765534243653,-617.40005154,0.00011981,2]
[398317716,1765534243662,-1000.0,0.00012,2]
[398317717,1765534243671,-153.32,0.00012,2]
[398317718,1765534243680,-864.0,0.00012045,2]
[398317719,1765534243690,-153.32,0.000122,2]
[398317720,1765534243699,-151.0,0.00012329,2]
[398317721,1765534243708,-151.0,0.00012329,2]
[398317722,1765534243717,-151.0,0.00012329,2]
[398317723,1765534243726,-151.0,0.00012329,2]
[398317724,1765534243735,-151.0,0.00012329,2]
[398317725,1765534243744,-316.5149,0.00012346,2]
[398317726,1765534243754,-500.0,0.00012365,2]
[398317727,1765534243763,-280.484,0.00012387,2]
[398317728,1765534243773,-290.83855267,0.00012393,2]
[398317729,1765534243785,-4.46786625,0.00012393,2]
[398317730,1765534243795,-153.32,0.000124,2]
[398317731,1765534243805,-342.37765375,0.00012529,2]
[398317736,1765534301534,150.0,7.438e-05,2]
[398317737,1765534301921,244.07,8.114e-05,2]
[398317738,1765534389530,150.0,7.338e-05,2]
[398317739,1765534390305,234.04,8.005e-05,2]
[398317740,1765534390371,351.05,8.673e-05,2]
[398317741,1765534453783,5000.0,8.689e-05,2]
[398317742,1765534469389,150.0,7.338e-05,2]
[398317743,1765534469801,215.33,8.005e-05,2]
[398317744,1765534470223,322.99,8.672e-05,2]
[398317745,1765534476502,1957.99,8.689e-05,2]
[398317746,1765534476525,3042.01,8.689e-05,2]
[398317747,1765534548919,150.0,7.296e-05,2]
[398317748,1765534549271,197.8,7.959e-05,2]
[398317749,1765534560211,296.71,8.622e-05,2]
[398317750,1765534639083,150.0,7.314e-05,2]
[398317751,1765534639510,181.4,7.979e-05,2]
[398317752,1765534639921,272.1,8.644e-05,2]
[398317753,1765534642820,5000.0,8.689e-05,2]
[398317754,1765534651697,709.99,8.689e-05,2]
[398317755,1765534651721,4290.01,8.689e-05,2]
[398317756,1765534666891,5000.0,8.689e-05,2]
[398317757,1765534674724,710.0,8.689e-05,2]
[398317758,1765534674746,4290.0,8.689e-05,2]
[398317759,1765534689907,5000.0,8.689e-05,2]
[398317760,1765534698069,710.01,8.689e-05,2]
[398317761,1765534698093,4289.99,8.689e-05,2]
[398317762,1765534713180,5000.0,8.689e-05,2]
[398317763,1765534716793,150.0,7.299e-05,2]
[398317764,1765534717203,185.69,7.963e-05,2]
[398317765,1765534717625,278.53,8.626e-05,2]
[398317766,1765534721537,95.8,8.689e-05,2]
[398317767,1765534721559,4904.2,8.689e-05,2]
[398317768,1765534737293,5000.0,8.689e-05,2]
[398317769,1765534760333,95.81,8.689e-05,2]
[398317770,1765534760355,4904.19,8.689e-05,2]
[398317771,1765534782487,5000.0,8.689e-05,2]
[398317772,1765534800773,95.82,7.304e-05,2]
[398317773,1765534800798,54.18,7.304e-05,2]
[398317774,1765534801180,188.45,7.968e-05,2]
[398317775,1765534801568,282.68,8.632e-05,2]
[398317776,1765534830768,2058.82022257,0.0001,9]
[398317777,1765534880378,150.0,7.278e-05,2]
[398317778,1765534880791,180.69,7.939e-05,2]
[398317779,1765534881215,271.03,8.601e-05,2]
[398317780,1765534941176,5000.0,8.689e-05,2]
[398317781,1765534960144,150.0,7.271e-05,2]
[398317782,1765534960735,165.37,7.932e-05,2]
[398317783,1765534961139,248.05,8.593e-05,2]
[398317784,1765534964951,3309.56,8.689e-05,2]
[398317785,1765534964973,1690.44,8.689e-05,2]
[398317786,1765534987015,5000.0,8.689e-05,2]
[398317787,1765535002848,3309.57,8.689e-05,2]
[398317788,1765535002869,1690.43,8.689e-05,2]
[398317789,1765535010257,5000.0,8.689e-05,2]
[398317790,1765535025913,3309.58,8.689e-05,2]
[398317791,1765535027679,-1690.42,8.689e-05,2]
[398317792,1765535033743,5000.0,8.689e-05,2]
[398317793,1765535040353,150.0,7.253e-05,2]
[398317794,1765535040792,151.03,7.912e-05,2]
[398317795,1765535041194,226.54,8.572e-05,2]
[398317796,1765535049520,1091.6,8.689e-05,2]
[398317797,1765535049543,3908.4,8.689e-05,2]
[398317798,1765535057294,5000.0,8.689e-05,2]
[398317799,1765535072486,1091.61,8.689e-05,2]
[398317800,1765535072509,3908.39,8.689e-05,2]
[398317801,1765535080713,5000.0,8.689e-05,2]
[398317802,1765535095931,1091.62,8.689e-05,2]
[398317803,1765535095954,3908.38,8.689e-05,2]
[398317804,1765535119605,150.0,7.275e-05,2]
[398317805,1765535119870,5000.0,8.689e-05,2]
[398317806,1765535119997,167.21,7.937e-05,2]
[398317807,1765535120393,250.81,8.598e-05,2]
[398317808,1765535142462,523.61,8.689e-05,2]
[398317809,1765535142484,4476.39,8.689e-05,2]
[398317810,1765535164509,5000.0,8.689e-05,2]
[398317811,1765535186549,523.62,8.689e-05,2]
[398317812,1765535186572,4476.38,8.689e-05,2]
[398317813,1765535209806,5000.0,8.689e-05,2]
[398317814,1765535209958,150.0,7.271e-05,2]
[398317815,1765535210524,173.17,7.932e-05,2]
[398317816,1765535210920,200.46,8.593e-05,2]
[398317817,1765535210944,59.3,8.593e-05,2]
[398317820,1765535231810,5000.0,8.689e-05,2]
[398317821,1765535254796,4940.71,8.689e-05,2]
[398317822,1765535254822,59.29,8.689e-05,2]
[398317824,1765535277831,5000.0,8.689e-05,2]
[398317825,1765535286040,4940.72,8.689e-05,2]
[398317826,1765535286064,59.28,8.689e-05,2]
[398317828,1765535290235,150.0,7.293e-05,2]
[398317829,1765535290651,164.62,7.956e-05,2]
[398317830,1765535291551,246.94,8.62e-05,2]
[398317831,1765535301155,5000.0,8.689e-05,2]
[398317832,1765535308921,4379.17,8.689e-05,2]
[398317833,1765535308945,620.83,8.689e-05,2]
[398317834,1765535324605,5000.0,8.689e-05,2]
[398317835,1765535332425,4379.18,8.689e-05,2]
[398317836,1765535332449,620.82,8.689e-05,2]
[398317837,1765535347594,5000.0,8.689e-05,2]
[398317838,1765535355384,4379.19,8.689e-05,2]
[398317839,1765535355408,620.81,8.689e-05,2]
[398317840,1765535369338,150.0,7.191e-05,2]
[398317841,1765535369680,216.62,7.845e-05,2]
[398317842,1765535370121,324.93,8.499e-05,2]
[398317843,1765535370596,5000.0,8.689e-05,2]
[398317844,1765535378380,3687.65,8.689e-05,2]
[398317845,1765535378403,1312.35,8.689e-05,2]
[398317846,1765535393498,5000.0,8.689e-05,2]
[398317847,1765535401325,3687.66,8.689e-05,2]
[398317848,1765535401347,1312.34,8.689e-05,2]
[398317849,1765535416701,5000.0,8.689e-05,2]
[398317850,1765535424508,3687.67,8.689e-05,2]
[398317851,1765535424531,1312.33,8.689e-05,2]
[398317860,1765535432026,-150.0,8.8e-05,2]
[398317861,1765535432036,-153.33,8.8e-05,2]
[398317862,1765535432046,-433.24,9.153e-05,2]
[398317863,1765535432055,-153.33,9.5e-05,2]
[398317864,1765535432065,-541.55,9.807e-05,2]
[398317865,1765535432074,-1279.68626909,0.00010221,2]
[398317866,1765535432083,-67.39465857,0.000103,2]
[398317867,1765535432094,-85.93534143,0.000103,2]
[398317868,1765535432104,-649.86,0.0001046,2]
[398317869,1765535432113,-224.388,0.00010735,2]
[398317870,1765535432122,-1279.68626909,0.00010796,2]
[398317871,1765535432132,-177.0,0.000108,2]
[398317872,1765535432141,-998.0,0.00010919,2]
[398317873,1765535432150,-240.0,0.00010924,2]
[398317874,1765535432159,-153.33,0.00011,2]
[398317875,1765535432168,-1200.0,0.00011113,2]
[398317876,1765535432177,-758.17,0.00011114,2]
[398317877,1765535432186,-10000.0,0.000112,2]
[398317878,1765535432195,-600.0,0.00011218,2]
[398317879,1765535432205,-300.0,0.00011298,2]
[398317880,1765535432214,-300.0,0.00011298,2]
[398317881,1765535432223,-300.0,0.00011298,2]
[398317882,1765535432236,-1279.68626909,0.0001137,2]
[398317883,1765535432245,-336.7776112,0.00011693,2]
[398317884,1765535432254,-250.0,0.00011693,2]
[398317885,1765535432263,-250.0,0.00011693,2]
[398317886,1765535432272,-250.0,0.00011693,2]
[398317887,1765535432281,-272.83088422,0.00011693,2]
[398317888,1765535432291,-574.12855637,0.00011693,2]
[398317889,1765535432300,-300.0,0.00011724,2]
[398317890,1765535432310,-300.0,0.00011724,2]
[398317891,1765535432319,-300.0,0.00011724,2]
[398317892,1765535432328,-866.48,0.00011768,2]
[398317893,1765535432337,-153.33,0.000118,2]
[398317894,1765535432346,-1279.68626909,0.00011945,2]
[398317895,1765535432355,-3935.94506004,0.00012195,2]
[398317896,1765535432364,-387.27717219,0.00012241,2]
[398317897,1765535432376,-208.09414077,0.00012241,2]
[398317898,1765535432385,-75.22939157,0.0001234,2]
[398317987,1765535438084,-644.77060843,0.0001234,2]
[398317988,1765535438094,-420.0,0.00012412,2]
[398317989,1765535438104,-974.79,0.00012422,2]
[398317990,1765535438114,-295.30641892,0.00012425,2]
[398317991,1765535438124,-153.33,0.000125,2]
[398317992,1765535438134,-1279.68626909,0.00012519,2]
[398317993,1765535438143,-2000.0,0.00012528,2]
[398317994,1765535438154,-617.40005154,0.00012789,2]
[398317995,1765535438164,-1137.5645904,0.0001279,2]
[398317996,1765535438173,-204.0,0.000128,2]
[398317997,1765535438183,-501.0674009,0.00012891,2]
[398317998,1765535438193,-501.0674009,0.00012891,2]
[398317999,1765535438203,-501.0674009,0.00012891,2]
[398318000,1765535438213,-501.0674009,0.00012891,2]
[398318001,1765535438222,-501.0674009,0.00012891,2]
[398318002,1765535438235,-501.0674009,0.00012891,2]
[398318003,1765535438244,-501.0674009,0.00012891,2]
[398318004,1765535438254,-501.0674009,0.00012891,2]
[398318005,1765535438264,-501.0674009,0.00012891,2]
[398318006,1765535438273,-501.0674009,0.00012891,2]
[398318007,1765535438283,-501.0674009,0.00012891,2]
[398318008,1765535438292,-501.0674009,0.00012891,2]
[398318009,1765535438302,-501.0674009,0.00012891,2]
[398318010,1765535438311,-501.0674009,0.00012891,2]
[398318011,1765535438321,-501.0674009,0.00012891,2]
[398318012,1765535438331,-501.0674009,0.00012891,2]
[398318013,1765535438341,-501.0674009,0.00012891,2]
[398318014,1765535438351,-501.0674009,0.00012891,2]
[398318015,1765535438361,-501.0674009,0.00012891,2]
[398318016,1765535438372,-501.0674009,0.00012891,2]
[398318017,1765535438382,-501.0674009,0.00012891,2]
[398318018,1765535438392,-501.0674009,0.00012891,2]
[398318019,1765535438402,-501.0674009,0.00012891,2]
[398318020,1765535438411,-501.0674009,0.00012891,2]
[398318021,1765535438421,-501.0674009,0.00012891,2]
[398318022,1765535438431,-501.0674009,0.00012891,2]
[398318023,1765535438440,-501.0674009,0.00012891,2]
[398318024,1765535438450,-501.0674009,0.00012891,2]
[398318025,1765535438460,-501.0674009,0.00012891,2]
[398318026,1765535438469,-501.0674009,0.00012891,2]
[398318027,1765535438479,-501.0674009,0.00012891,2]
[398318028,1765535438489,-501.0674009,0.00012891,2]
[398318029,1765535438499,-501.0674009,0.00012891,2]
[398318030,1765535438510,-501.0674009,0.00012891,2]
[398318031,1765535438519,-501.0674009,0.00012891,2]
[398318032,1765535438529,-501.0674009,0.00012891,2]
[398318033,1765535438539,-501.0674009,0.00012891,2]
[398318034,1765535438549,-501.0674009,0.00012891,2]
[398318035,1765535438559,-501.0674009,0.00012891,2]
[398318036,1765535438569,-501.0674009,0.00012891,2]
[398318037,1765535438578,-501.0674009,0.00012891,2]
[398318038,1765535438588,-501.0674009,0.00012891,2]
[398318039,1765535438597,-501.0674009,0.00012891,2]
[398318040,1765535438607,-501.0674009,0.00012891,2]
[398318041,1765535438617,-501.0674009,0.00012891,2]
[398318042,1765535438627,-501.0674009,0.00012891,2]
[398318043,1765535438637,-501.0674009,0.00012891,2]
[398318044,1765535438647,-501.0674009,0.00012891,2]
[398318045,1765535438657,-501.0674009,0.00012891,2]
[398318046,1765535438667,-501.0674009,0.00012891,2]
[398318047,1765535438677,-501.0674009,0.00012891,2]
[398318048,1765535438687,-501.0674009,0.00012891,2]
[398318049,1765535438696,-501.0674009,0.00012891,2]
[398318050,1765535438705,-501.0674009,0.00012891,2]
[398318051,1765535438715,-501.0674009,0.00012891,2]
[398318052,1765535438725,-501.0674009,0.00012891,2]
[398318053,1765535438735,-501.0674009,0.00012891,2]
[398318054,1765535438744,-501.0674009,0.00012891,2]
[398318055,1765535438754,-501.0674009,0.00012891,2]
[398318056,1765535438764,-501.0674009,0.00012891,2]
[398318057,1765535438774,-501.0674009,0.00012891,2]
[398318058,1765535438783,-501.0674009,0.00012891,2]
[398318059,1765535438793,-501.0674009,0.00012891,2]
[398318060,1765535438802,-501.0674009,0.00012891,2]
[398318061,1765535438812,-501.0674009,0.00012891,2]
[398318062,1765535438822,-501.0674009,0.00012891,2]
[398318063,1765535438832,-500.0,0.00012891,2]
[398318064,1765535438841,-500.0,0.00012891,2]
[398318065,1765535438851,-500.0,0.00012891,2]
[398318066,1765535438860,-500.0,0.00012891,2]
[398318067,1765535438870,-500.0,0.00012891,2]
[398318068,1765535438879,-500.0,0.00012891,2]
[398318069,1765535438888,-500.0,0.00012891,2]
[398318070,1765535438898,-500.0,0.00012891,2]
[398318071,1765535438908,-500.0,0.00012891,2]
[398318072,1765535438917,-500.0,0.00012891,2]
[398318073,1765535438927,-500.0,0.00012891,2]
[398318074,1765535438936,-500.0,0.00012891,2]
[398318075,1765535438946,-500.0,0.00012891,2]
[398318076,1765535438956,-500.0,0.00012891,2]
[398318077,1765535438965,-500.0,0.00012891,2]
[398318078,1765535438975,-500.0,0.00012891,2]
[398318079,1765535438984,-500.0,0.00012891,2]
[398318080,1765535438994,-500.0,0.00012891,2]
[398318081,1765535439004,-500.0,0.00012891,2]
[398318082,1765535439013,-274.01651983,0.00012891,2]
[398318083,1765535439023,-500.0,0.00012891,2]
[398318084,1765535439033,-500.0,0.00012891,2]
[398318085,1765535439042,-500.0,0.00012891,2]
[398318086,1765535439051,-500.0,0.00012891,2]
[398318087,1765535439060,-500.0,0.00012891,2]
[398318088,1765535439076,-500.0,0.00012891,2]
[398318089,1765535439086,-500.0,0.00012891,2]
[398318090,1765535439095,-500.0,0.00012891,2]
[398318091,1765535439104,-500.0,0.00012891,2]
[398318092,1765535439113,-500.0,0.00012891,2]
[398318093,1765535439123,-468.10190803,0.00012891,2]
[398318094,1765535439133,-500.0,0.00012891,2]
[398318095,1765535439142,-500.0,0.00012891,2]
[398318096,1765535439152,-500.0,0.00012891,2]
[398318097,1765535439161,-500.0,0.00012891,2]
[398318098,1765535439171,-500.0,0.00012891,2]
[398318099,1765535439182,-500.0,0.00012891,2]
[398318100,1765535439191,-500.0,0.00012891,2]
[398318101,1765535439200,-500.0,0.00012891,2]
[398318102,1765535439209,-500.0,0.00012891,2]
[398318103,1765535439219,-500.0,0.00012891,2]
[398318104,1765535439229,-500.0,0.00012891,2]
[398318105,1765535439241,-500.0,0.00012891,2]
[398318106,1765535439250,-500.0,0.00012891,2]
[398318107,1765535439259,-500.0,0.00012891,2]
[398318108,1765535439269,-500.0,0.00012891,2]
[398318109,1765535439278,-500.0,0.00012892,2]
[398318110,1765535439288,-340.19344989,0.00012892,2]
[398318111,1765535439297,-219.40573394,0.00012892,2]
[398318112,1765535439306,-500.0,0.00012892,2]
[398318113,1765535439315,-151.0,0.00012895,2]
[398318114,1765535439325,-151.0,0.00012895,2]
[398318115,1765535439334,-151.0,0.00012895,2]
[398318116,1765535439344,-151.0,0.00012895,2]
[398318117,1765535439353,-152.64276653,0.00012895,2]
[398318118,1765535439362,-152.51465443,0.00012895,2]
[398318119,1765535439371,-155.02080223,0.00012895,2]
[398318120,1765535439381,-292.88906067,0.00012895,2]
[398318121,1765535439391,-151.0,0.00012895,2]
[398318122,1765535439400,-248.60512857,0.00012895,2]
[398318123,1765535439410,-500.0,0.00012895,2]
[398318124,1765535439419,-79979.67940036,0.00012896,2]
[398318140,1765535440302,-5000.0,0.00012217,2]
[398318141,1765535440312,-4790.07624773,0.00012896,2]
[398318377,1765535446096,-151.0,0.00012891,2]
[398318379,1765535446107,-1409.0,0.00012896,2]
[398318382,1765535446119,-277.312261,0.00012896,2]
[398318386,1765535446150,-13923.21701366,0.00012896,2]
[398318663,1765535449018,150.0,7.352e-05,2]
[398318707,1765535449438,150.0,8.02e-05,2]
[398318748,1765535449830,199.3,8.689e-05,2]
[398318879,1765535528499,150.0,7.285e-05,2]
[398318880,1765535528897,150.0,7.947e-05,2]
[398318881,1765535529306,180.24,8.61e-05,2]
[398318882,1765535606025,150.0,7.285e-05,2]
[398318883,1765535606497,150.0,7.947e-05,2]
[398318884,1765535606932,161.9,8.61e-05,2]
[398318885,1765535641052,5000.0,8.689e-05,2]
[398318886,1765535656495,2246.24,8.689e-05,2]
[398318887,1765535656518,2753.76,8.689e-05,2]
[398318888,1765535664413,5000.0,8.689e-05,2]
[398318889,1765535680376,2246.25,8.689e-05,2]
[398318890,1765535680400,2753.75,8.689e-05,2]
[398318891,1765535683455,150.0,7.289e-05,2]
[398318892,1765535683890,150.0,7.951e-05,2]
[398318893,1765535684303,150.0,8.614e-05,2]
[398318894,1765535688185,5000.0,8.689e-05,2]
[398318895,1765535703515,1796.26,8.689e-05,2]
[398318896,1765535703539,3203.74,8.689e-05,2]
[398318897,1765535725743,5000.0,8.689e-05,2]
[398318898,1765535734301,1796.27,8.689e-05,2]
[398318899,1765535736952,-3203.73,8.689e-05,2]
[398318900,1765535749737,3592.55,8.689e-05,2]
[398318901,1765535749759,1407.45,8.689e-05,2]
[398318902,1765535758115,5000.0,8.689e-05,2]
[398318903,1765535758151,150.0,7.281e-05,2]
[398318904,1765535758558,150.0,7.943e-05,2]
[398318905,1765535758965,178.1,8.605e-05,2]
[398318906,1765535773929,3114.46,8.689e-05,2]
[398318907,1765535773950,1885.54,8.689e-05,2]
[398318908,1765535781797,5000.0,8.689e-05,2]
[398318909,1765535797748,3114.47,8.689e-05,2]
[398318910,1765535797770,1885.53,8.689e-05,2]
[398318911,1765535805599,5000.0,8.689e-05,2]
[398318912,1765535832091,150.0,7.279e-05,2]
[398318913,1765535832305,2964.48,8.689e-05,2]
[398318914,1765535832328,2035.52,8.689e-05,2]
[398318915,1765535832518,150.0,7.941e-05,2]
[398318916,1765535832876,172.34,8.603e-05,2]
[398318917,1765535840642,3648.26,8.689e-05,2]
[398318918,1765535856731,3993.89,8.689e-05,2]
[398318919,1765535856752,1006.11,8.689e-05,2]
[398318920,1765535865055,5000.0,8.689e-05,2]
[398318921,1765535880186,3993.9,8.689e-05,2]
[398318922,1765535887965,5000.0,8.67e-05,2]
[398318923,1765535908721,150.0,7.304e-05,2]
[398318924,1765535909142,150.0,7.968e-05,2]
[398318925,1765535909537,185.78,8.632e-05,2]
[398318926,1765535910437,1351.74,8.67e-05,2]
[398318928,1765535987494,150.0,7.351e-05,2]
[398318929,1765535988385,150.0,8.019e-05,2]
[398318931,1765536066287,150.0,7.328e-05,2]
[398318932,1765536066684,150.0,7.994e-05,2]
[398318933,1765536067083,155.78,8.66e-05,2]
[398318934,1765536076363,2406.71,8.67e-05,2]
[398318935,1765536076386,2593.29,8.67e-05,2]
[398318936,1765536084282,2859.03,8.67e-05,2]
[398318937,1765536099459,4547.69,8.67e-05,2]
[398318938,1765536099482,452.31,8.67e-05,2]
[398318939,1765536107239,5000.0,8.67e-05,2]
[398318940,1765536122390,4547.7,8.67e-05,2]
[398318941,1765536122415,452.3,8.67e-05,2]
[398318942,1765536130155,5000.0,8.67e-05,2]
[398318943,1765536142131,150.0,7.329e-05,2]
[398318944,1765536142302,160.55,7.996e-05,2]
[398318945,1765536142701,240.83,8.662e-05,2]
[398318946,1765536145816,3996.33,8.67e-05,2]
[398318947,1765536145838,1003.67,8.67e-05,2]
[398318948,1765536154100,5000.0,8.67e-05,2]
[398318949,1765536179690,-5000.0,8.527e-05,2]
[398318950,1765536184682,0.01,8.5e-05,2]
[398318951,1765536184708,153.31,8.5e-05,2]
[398318952,1765536194784,-5000.0,8.613e-05,2]
[398318953,1765536206767,0.01,8.613e-05,2]
[398318954,1765536206789,4999.99,8.613e-05,2]
[398318955,1765536214684,5000.0,8.613e-05,2]
[398318956,1765536219889,0.02,7.333e-05,2]
[398318957,1765536219913,149.98,7.333e-05,2]
[398318958,1765536220287,193.26,8e-05,2]
[398318959,1765536231211,5000.0,8.613e-05,2]
[398318960,1765536240043,5000.0,8.54e-05,2]
[398318961,1765536256075,5000.0,8.54e-05,2]
[398318962,1765536263626,0.01,8.54e-05,2]
[398318963,1765536263650,4999.99,8.54e-05,2]
[398318964,1765536278865,5000.0,8.54e-05,2]
[398318965,1765536286621,0.02,8.54e-05,2]
[398318966,1765536286644,4999.98,8.54e-05,2]
[398318967,1765536298736,150.0,7.333e-05,2]
[398318968,1765536299142,191.86,8e-05,2]
[398318969,1765536322474,-5000.0,8.527e-05,2]
[398318970,1765536331810,0.01,8.527e-05,2]
[398318971,1765536331832,4999.99,8.527e-05,2]
[398318972,1765536340182,5000.0,8.527e-05,2]
[398318973,1765536355523,0.02,8.527e-05,2]
[398318974,1765536355549,4999.98,8.527e-05,2]
[398318975,1765536377600,5000.0,8.543e-05,2]
[398318976,1765536382991,150.0,7.323e-05,2]
[398318977,1765536383395,183.16,7.989e-05,2]
[398318978,1765536385930,4666.85,8.543e-05,2]
[398318979,1765536385953,333.15,8.543e-05,2]
[398318980,1765536401439,5000.0,8.543e-05,2]
[398318981,1765536424358,4666.86,8.543e-05,2]
[398318982,1765536424380,333.14,8.543e-05,2]
[398318983,1765536433236,5000.0,8.543e-05,2]
[398318984,1765536448088,4666.87,8.543e-05,2]
[398318985,1765536448111,333.13,8.543e-05,2]
[398318986,1765536462251,150.0,7.299e-05,2]
[398318987,1765536462663,189.48,7.962e-05,2]